bitfinex/quotes_SOLUSD_20250619
["timestamp","ask_amount","ask_price","bid_price","bid_amount"]
[1750319147595,5.14485807,145.43,145.41,15.07683625]
[1750319147798,26.0,145.44,145.41,15.07683625]
[1750319147968,5.14485741,145.43,145.41,15.07683625]
[1750319148304,5.14485741,145.42,145.41,6.87710611]
[1750319148482,34.19973014,145.44,145.41,6.87710611]
[1750319148684,5.14409541,145.43,145.41,6.87710611]
[1750319148909,34.19973014,145.44,145.41,6.87710611]
[1750319149207,5.1440941,145.43,145.4,24.07152682]
[1750319149409,34.19973014,145.44,145.4,24.07152682]
[1750319149576,5.14382337,145.43,145.4,32.27125696]
[1750319149776,26.0,145.44,145.41,8.19973014]
[1750319149994,5.14382402,145.43,145.41,8.19973014]
[1750319150169,26.0,145.44,145.41,8.19973014]
[1750319150370,5.14382271,145.43,145.41,8.19973014]
[1750319150679,26.0,145.44,145.41,8.19973014]
[1750319150993,5.14365725,145.43,145.41,8.19973014]
[1750319151300,26.0,145.44,145.42,6.8766332]
[1750319151506,5.14359508,145.43,145.42,6.8766332]
[1750319157513,5.14359508,145.43,145.39,6.87805213]
[1750319157693,8.19973014,145.43,145.39,15.07778227]
[1750319157880,26.0,145.44,145.4,8.19973014]
[1750319158205,5.14405278,145.43,145.4,8.19973014]
[1750319158379,34.19973014,145.44,145.4,8.19973014]
[1750319158582,5.14374033,145.43,145.4,8.19973014]
[1750319158783,34.19973014,145.44,145.4,8.19973014]
[1750319158982,5.14374098,145.43,145.4,8.19973014]
[1750319159182,34.19973014,145.44,145.41,6.87710611]
[1750319159382,5.14373967,145.43,145.41,6.87710611]
[1750319159611,34.19973014,145.44,145.41,6.87710611]
[1750319159909,5.14344095,145.43,145.41,6.87710611]
[1750319160111,34.19973014,145.44,145.41,6.87710611]
[1750319160339,5.14344095,145.43,145.41,15.07683625]
[1750319160506,26.0,145.44,145.41,15.07683625]
[1750319160808,5.14299069,145.43,145.41,15.07683625]
[1750319161009,26.0,145.44,145.41,15.07683625]
[1750319161208,5.14299135,145.43,145.41,15.07683625]
[1750319161418,26.0,145.44,145.41,15.07683625]
[1750319161617,5.14279294,145.43,145.41,15.07683625]
[1750319161841,26.0,145.44,145.41,15.07683625]
[1750319162018,5.142557,145.43,145.41,15.07683625]
[1750319162333,26.0,145.44,145.41,15.07683625]
[1750319162631,5.14235529,145.43,145.41,15.07683625]
[1750319162937,41.06239688,145.42,145.38,6.87852524]
[1750319163249,13.34239688,145.41,145.38,6.87852524]
[1750319163419,8.19973014,145.41,145.38,6.87852524]
[1750319166635,27.72,145.42,145.38,6.87852524]
[1750319166636,35.91973014,145.42,145.38,8.19973014]
[1750319166938,5.14400579,145.41,145.38,8.19973014]
[1750319167147,35.91973014,145.42,145.38,8.19973014]
[1750319167312,5.14393083,145.41,145.38,8.19973014]
[1750319167513,27.74,145.43,145.4,8.19973014]
[1750319168045,5.14422349,145.42,145.39,8.19973014]
[1750319168224,4.78723681,145.43,145.39,8.19973014]
[1750319168541,5.1442248,145.42,145.39,8.19973014]
[1750319168844,61.93973014,145.44,145.4,6.87757909]
[1750319168845,12.98695466,145.43,145.4,6.87757909]
[1750319169143,5.14445663,145.42,145.4,6.87757909]
[1750319169344,5.14458086,145.41,145.4,6.87757909]
[1750319169639,8.19973014,145.43,145.4,6.87757909]
[1750319169834,5.14488053,145.42,145.4,6.87757909]
[1750319170025,8.19973014,145.43,145.4,6.87757909]
[1750319170225,9.9332546,145.42,145.4,6.87757909]
[1750319170425,5.14490753,145.41,145.4,6.87757909]
[1750319170839,5.14490753,145.41,145.39,6.87805213]
[1750319171149,8.19973014,145.42,145.39,6.87805213]
[1750319171314,5.14542375,145.41,145.39,6.87805213]
[1750319171514,8.19973014,145.42,145.39,6.87805213]
[1750319171734,5.14611649,145.41,145.39,6.87805213]
[1750319171939,8.19973014,145.42,145.39,6.87805213]
[1750319172113,5.1460861,145.41,145.39,6.87805213]
[1750319172319,8.19973014,145.42,145.39,6.87805213]
[1750319172538,5.14698011,145.41,145.39,6.87805213]
[1750319172749,8.19973014,145.42,145.38,6.87852524]
[1750319172916,13.34670153,145.41,145.38,6.87852524]
[1750319173117,8.19973014,145.42,145.38,6.87852524]
[1750319173430,5.14703218,145.41,145.38,6.87852524]
[1750319173737,5.14779195,145.4,145.38,15.07825538]
[1750319174049,4.80454938,145.41,145.38,15.07825538]
[1750319174344,5.14779195,145.4,145.38,15.07825538]
[1750319174544,4.80493684,145.41,145.38,15.07825538]
[1750319174751,8.19973014,145.42,145.38,15.07825538]
[1750319174752,5.14861979,145.4,145.38,15.07825538]
[1750319174951,8.19973014,145.42,145.38,15.07825538]
[1750319175151,9.95569381,145.41,145.38,15.07825538]
[1750319175336,5.14861914,145.4,145.38,15.07825538]
[1750319175535,8.19973014,145.42,145.35,24.07980736]
[1750319175733,8.19973014,145.42,145.38,8.19973014]
[1750319175734,9.95627295,145.41,145.38,8.19973014]
[1750319175946,5.14919655,145.4,145.38,8.19973014]
[1750319176147,8.19973014,145.42,145.38,8.19973014]
[1750319176449,9.95620064,145.41,145.38,8.19973014]
[1750319176652,5.14916418,145.4,145.39,6.87805213]
[1750319184551,5.14916418,145.4,145.38,6.87852524]
[1750319184745,8.19973014,145.42,145.38,6.87852524]
[1750319184945,9.96278719,145.41,145.38,6.87852524]
[1750319185144,5.15194603,145.4,145.38,6.87852524]
[1750319185344,8.19973014,145.42,145.38,6.87852524]
[1750319185655,9.96291531,145.41,145.38,6.87852524]
[1750319185856,5.15207587,145.4,145.38,6.87852524]
[1750319186152,8.19973014,145.42,145.38,6.87852524]
[1750319186358,9.96082149,145.41,145.38,6.87852524]
[1750319186661,5.15206648,145.4,145.38,6.87852524]
[1750319186870,8.19973014,145.42,145.38,6.87852524]
[1750319187040,9.96151744,145.41,145.38,6.87852524]
[1750319187240,5.1522221,145.4,145.38,6.87852524]
[1750319187553,8.19973014,145.42,145.38,6.87852524]
[1750319187751,18.16123683,145.41,145.38,6.87852524]
[1750319187955,9.96150669,145.4,145.37,6.87880038]
[1750319188159,9.96150669,145.39,145.37,6.87880038]
[1750319188465,5.15235904,145.38,145.37,6.87880038]
[1750319189370,18.15941892,145.38,145.33,6.88089176]
[1750319189581,18.15941892,145.37,145.33,6.88089176]
[1750319189777,9.95968878,145.36,145.33,6.88089176]
[1750319189975,26.0,145.37,145.34,8.19973014]
[1750319190177,35.91973014,145.4,145.35,8.19973014]
[1750319190377,18.15369007,145.39,145.35,8.19973014]
[1750319190556,9.95395993,145.38,145.34,8.19973014]
[1750319190882,5.14620933,145.37,145.34,8.19973014]
[1750319191085,4.80892746,145.38,145.34,8.19973014]
[1750319191378,5.14474395,145.37,145.35,6.87994496]
[1750319191563,4.80892947,145.38,145.35,6.87994496]
[1750319191760,5.14336778,145.37,145.35,6.87994496]
[1750319191962,8.19973014,145.39,145.35,15.0796751]
[1750319192170,53.72,145.41,145.36,8.19973014]
[1750319192171,5.14370819,145.38,145.36,8.19973014]
[1750319192370,8.19973014,145.4,145.36,8.19973014]
[1750319192688,5.14276524,145.39,145.36,8.19973014]
[1750319192863,8.19973014,145.4,145.36,8.19973014]
[1750319193066,5.14282398,145.39,145.36,8.19973014]
[1750319193282,8.19973014,145.4,145.37,6.87899841]
[1750319193578,5.14257545,145.39,145.37,6.87899841]
[1750319193779,8.19973014,145.4,145.37,6.87899841]
[1750319193979,5.14251097,145.39,145.37,6.87899841]
[1750319194189,8.19973014,145.4,145.37,6.87899841]
[1750319194382,5.14239766,145.39,145.37,6.87899841]
[1750319194687,8.19973014,145.4,145.37,6.87899841]
[1750319194888,5.14206575,145.39,145.37,6.87899841]
[1750319195066,8.19973014,145.4,145.37,6.87899841]
[1750319195368,5.14204496,145.39,145.37,6.87899841]
[1750319195566,8.19973014,145.4,145.37,6.87899841]
[1750319195776,5.14200423,145.39,145.37,6.87899841]
[1750319196072,8.19973014,145.4,145.37,6.87899841]
[1750319196271,5.14222411,145.39,145.37,6.87899841]
[1750319196471,8.19973014,145.4,145.37,6.87899841]
[1750319196672,5.14221049,145.39,145.37,6.87899841]
[1750319196893,8.19973014,145.4,145.37,6.87899841]
[1750319197092,5.14224084,145.39,145.37,6.87899841]
[1750319197278,8.19973014,145.4,145.37,6.87899841]
[1750319197478,5.14219174,145.39,145.37,6.87899841]
[1750319197779,8.19973014,145.4,145.37,6.87899841]
[1750319198080,5.1422219,145.39,145.37,6.87899841]
[1750319198394,8.19973014,145.4,145.37,6.87899841]
[1750319198689,5.14233391,145.39,145.37,6.87899841]
[1750319198885,5.25027221,145.4,145.37,6.87899841]
[1750319199086,5.14233391,145.39,145.37,6.87899841]
[1750319199287,5.25027221,145.4,145.37,6.87899841]
[1750319199480,5.14203195,145.39,145.37,6.87899841]
[1750319199790,5.25027221,145.4,145.37,6.87899841]
[1750319199969,5.14164188,145.39,145.37,6.87899841]
[1750319200166,53.72,145.41,145.38,5.25027221]
[1750319200167,26.0,145.41,145.38,5.25027221]
[1750319200365,6.42528844,145.43,145.38,5.25027221]
[1750319200366,5.14186581,145.4,145.38,5.25027221]
[1750319200594,4.80164805,145.42,145.38,5.25027221]
[1750319200811,9.94384479,145.41,145.38,5.25027221]
[1750319201002,5.14219648,145.4,145.39,5.25027221]
[1750319201173,4.80225236,145.42,145.39,5.25027221]
[1750319201373,5.14271173,145.41,145.39,5.25027221]
[1750319201570,4.80239057,145.42,145.39,5.25027221]
[1750319201796,5.14304871,145.41,145.39,5.25027221]
[1750319201993,4.80239146,145.42,145.37,24.07649445]
[1750319202208,5.14286718,145.41,145.4,6.87757909]
[1750319203874,5.14286718,145.41,145.39,8.20030198]
[1750319204075,8.20030198,145.43,145.39,8.20030198]
[1750319204276,9.97583837,145.42,145.39,8.20030198]
[1750319204485,5.14366451,145.41,145.39,8.20030198]
[1750319204699,8.20030198,145.43,145.39,8.20030198]
[1750319204898,9.97582261,145.42,145.39,8.20030198]
[1750319205095,5.14381986,145.41,145.4,6.87757909]
[1750319210491,8.20030198,145.44,145.4,6.87757909]
[1750319210692,9.97019348,145.43,145.4,6.87757909]
[1750319210912,9.97019348,145.42,145.4,6.87757909]
[1750319211101,8.20030198,145.44,145.4,6.87757909]
[1750319211296,18.17026829,145.43,145.4,6.87757909]
[1750319211511,9.96996631,145.42,145.4,6.87757909]
[1750319211710,8.20030198,145.43,145.4,6.87757909]
[1750319212008,5.14206709,145.42,145.4,6.87757909]
[1750319212204,8.20030198,145.43,145.4,6.87757909]
[1750319212417,5.14214787,145.42,145.4,6.87757909]
[1750319212619,8.20030198,145.43,145.4,6.87757909]
[1750319212823,9.96894796,145.42,145.4,6.87757909]
[1750319212997,8.20030198,145.43,145.4,6.87757909]
[1750319213198,9.96890039,145.42,145.4,6.87757909]
[1750319213400,8.20030198,145.43,145.4,6.87757909]
[1750319213601,9.96978316,145.42,145.4,6.87757909]
[1750319213797,8.20030198,145.43,145.4,6.87757909]
[1750319213997,18.64964886,145.41,145.36,6.87947165]
[1750319214194,18.17004863,145.4,145.36,32.27845277]
[1750319214411,5.14237734,145.39,145.36,32.27845277]
[1750319214719,8.20030198,145.4,145.36,32.27845277]
[1750319214920,9.96810573,145.39,145.36,32.27845277]
[1750319215095,8.20030198,145.4,145.36,32.27845277]
[1750319215296,5.14148538,145.39,145.36,32.27845277]
[1750319215495,8.20030198,145.4,145.36,32.27845277]
[1750319215704,5.1410003,145.39,145.36,32.27845277]
[1750319215902,8.20030198,145.4,145.36,32.27845277]
[1750319216106,5.14100724,145.39,145.36,32.27845277]
[1750319216305,8.20030198,145.4,145.36,32.27845277]
[1750319216598,5.14096281,145.39,145.36,32.27845277]
[1750319216798,35.92030198,145.41,145.37,8.20030198]
[1750319216998,9.96938882,145.4,145.37,8.20030198]
[1750319217215,5.14099136,145.39,145.37,8.20030198]
[1750319217514,35.92030198,145.41,145.38,6.87852524]
[1750319217706,9.96913448,145.4,145.38,6.87852524]
[1750319217907,5.14091938,145.39,145.38,6.87852524]
[1750319218721,35.92030198,145.41,145.38,6.87852524]
[1750319218925,9.96812204,145.4,145.37,8.20030198]
[1750319219137,5.14039071,145.39,145.37,8.20030198]
[1750319219307,35.92030198,145.41,145.37,8.20030198]
[1750319219604,9.96779769,145.4,145.37,8.20030198]
[1750319219810,5.14039221,145.39,145.34,112.28146414]
[1750319220137,27.72,145.41,145.38,15.07882722]
[1750319220310,9.96790421,145.4,145.38,15.07882722]
[1750319220514,27.72,145.41,145.39,8.20030198]
[1750319220827,27.72,145.41,145.38,6.87852524]
[1750319221019,27.72,145.41,145.39,8.20030198]
[1750319221815,27.72,145.41,145.38,24.07483835]
[1750319222038,27.72,145.41,145.4,6.87757909]
[1750319222244,9.97237414,145.41,145.4,6.87757909]
[1750319222923,9.97202607,145.41,145.4,6.87757909]
[1750319223245,5.14085046,145.41,145.4,6.87757909]
[1750319227725,5.14085046,145.41,145.4,12.12556118]
[1750319228047,6.42609894,145.45,145.4,12.12556118]
[1750319228048,4.83067687,145.44,145.4,29.31950891]
[1750319228214,9.97223342,145.43,145.41,5.24798209]
[1750319228417,5.14155655,145.42,145.41,5.24798209]
[1750319228611,71.19408103,145.46,145.41,5.24798209]
[1750319228837,9.9719373,145.45,145.41,5.24798209]
[1750319229033,9.9719373,145.44,145.41,5.24798209]
[1750319229241,9.9719373,145.43,145.4,29.31950891]
[1750319229445,5.24798209,145.44,145.4,29.31950891]
[1750319229618,9.97134607,145.43,145.4,29.31950891]
[1750319229820,5.24798209,145.44,145.4,29.31950891]
[1750319230019,9.97032084,145.43,145.4,29.31950891]
[1750319230328,5.24798209,145.44,145.4,29.31950891]
[1750319230558,9.96702616,145.43,145.4,29.31950891]
[1750319230734,5.24798209,145.44,145.4,17.19394773]
[1750319230924,15.21267194,145.43,145.39,12.12603422]
[1750319231127,5.24798209,145.41,145.39,6.87805213]
[1750319232053,5.24798209,145.42,145.39,6.87805213]
[1750319232262,9.95548441,145.41,145.39,6.87805213]
[1750319232452,5.24798209,145.42,145.39,6.87805213]
[1750319232652,9.9550869,145.41,145.39,6.87805213]
[1750319232844,5.24798209,145.42,145.39,6.87805213]
[1750319233038,5.13507214,145.41,145.39,6.87805213]
[1750319233242,5.24798209,145.42,145.39,6.87805213]
[1750319233445,9.95367834,145.41,145.39,6.87805213]
[1750319233643,5.24798209,145.42,145.39,6.87805213]
[1750319233926,9.95054821,145.41,145.39,6.87805213]
[1750319234122,31.24798209,145.43,145.39,12.12603422]
[1750319234332,9.95038733,145.42,145.39,12.12603422]
[1750319234531,9.95038733,145.41,145.39,12.12603422]
[1750319234748,31.24798209,145.43,145.39,12.12603422]
[1750319234941,9.95221738,145.42,145.39,12.12603422]
[1750319235140,9.95221417,145.41,145.39,12.12603422]
[1750319235360,31.24798209,145.43,145.39,12.12603422]
[1750319235549,37.67522196,145.42,145.39,12.12603422]
[1750319235751,9.95522196,145.41,145.39,12.12603422]
[1750319235963,5.13743171,145.4,145.39,12.12603422]
[1750319238052,5.13743171,145.4,145.38,5.24798209]
[1750319238249,27.72,145.42,145.38,5.24798209]
[1750319238475,9.9603969,145.41,145.38,5.24798209]
[1750319238661,5.13853705,145.4,145.38,5.24798209]
[1750319238847,27.72,145.42,145.38,5.24798209]
[1750319239176,9.96516679,145.41,145.39,6.87805213]
[1750319239349,5.14067194,145.4,145.39,6.87805213]
[1750319241977,5.14067194,145.4,145.38,6.878478]
[1750319242145,9.96714364,145.39,145.36,6.87947165]
[1750319242350,5.24798209,145.4,145.36,6.87947165]
[1750319242573,9.96718896,145.39,145.36,6.87947165]
[1750319242780,5.24798209,145.4,145.36,6.87947165]
[1750319242781,5.14163817,145.38,145.36,6.87947165]
[1750319242985,27.72,145.39,145.36,6.87947165]
[1750319243282,9.96674763,145.38,145.36,6.87947165]
[1750319243457,27.72,145.39,145.36,6.87947165]
[1750319243653,5.14073142,145.38,145.36,6.87947165]
[1750319243873,27.72,145.39,145.36,6.87947165]
[1750319244083,5.14022524,145.38,145.36,6.87947165]
[1750319244249,27.72,145.39,145.36,6.87947165]
[1750319244455,5.14024492,145.38,145.36,6.87947165]
[1750319244754,27.72,145.39,145.36,6.87947165]
[1750319244955,5.13989386,145.38,145.36,6.87947165]
[1750319245186,27.72,145.39,145.36,6.87947165]
[1750319245494,9.96888225,145.38,145.36,6.87947165]
[1750319245799,27.72,145.39,145.36,6.87947165]
[1750319245960,5.14228486,145.38,145.36,6.87947165]
[1750319246261,27.72,145.39,145.36,6.87947165]
[1750319246559,5.14212332,145.38,145.36,6.87947165]
[1750319246753,32.96798209,145.39,145.36,6.87947165]
[1750319246950,5.14155013,145.38,145.36,6.87947165]
[1750319247173,32.96798209,145.39,145.36,6.87947165]
[1750319247374,5.14152864,145.38,145.36,6.87947165]
[1750319247588,32.96798209,145.39,145.36,6.87947165]
[1750319247768,5.14099762,145.38,145.36,6.87947165]
[1750319248090,32.96798209,145.39,145.36,6.87947165]
[1750319248291,5.14096659,145.38,145.36,6.87947165]
[1750319248463,32.96798209,145.39,145.36,6.87947165]
[1750319248663,5.14078032,145.38,145.36,6.87947165]
[1750319248989,32.96798209,145.39,145.36,6.87947165]
[1750319249158,5.14078688,145.38,145.36,6.87947165]
[1750319249470,32.96798209,145.39,145.36,6.87947165]
[1750319249658,5.14045023,145.38,145.36,6.87947165]
[1750319249860,27.72,145.39,145.36,5.24798209]
[1750319250071,5.14109977,145.38,145.37,5.24798209]
[1750319250582,5.14109977,145.38,145.35,6.87994496]
[1750319250879,27.72,145.39,145.37,5.24798209]
[1750319251087,27.72,145.41,145.38,5.24798209]
[1750319251282,5.14113119,145.4,145.38,5.24798209]
[1750319251495,27.72,145.41,145.39,5.24798209]
[1750319251801,9.97237782,145.4,145.39,5.24798209]
[1750319251997,5.14122786,145.4,145.39,6.87805213]
[1750319252305,5.14122786,145.4,145.39,12.12603422]
[1750319253779,27.72,145.42,145.39,12.12603422]
[1750319254104,9.97484714,145.41,145.39,6.87805213]
[1750319254399,32.96798209,145.42,145.39,6.87805213]
[1750319254715,9.97493888,145.41,145.39,6.87805213]
[1750319254899,32.96798209,145.42,145.39,6.87805213]
[1750319255110,9.97492337,145.41,145.39,6.87805213]
[1750319255414,32.96798209,145.42,145.39,6.87805213]
[1750319255707,9.97492403,145.41,145.39,6.87805213]
[1750319255908,32.96798209,145.42,145.39,6.87805213]
[1750319256081,9.97468265,145.41,145.39,6.87805213]
[1750319256282,32.96798209,145.42,145.39,6.87805213]
[1750319256483,9.97468265,145.41,145.39,6.87805213]
[1750319256705,5.14142192,145.4,145.39,6.87805213]
[1750319257241,9.97363838,145.4,145.39,6.87805213]
[1750319258839,5.14142192,145.4,145.39,6.87805213]
[1750319259544,9.96793355,145.4,145.39,6.87805213]
[1750319259703,5.14142192,145.4,145.39,6.87805213]
[1750319261334,5.14142192,145.4,145.39,12.12603422]
[1750319261638,32.96798209,145.42,145.39,6.87805213]
[1750319261817,9.9658034,145.41,145.39,6.87805213]
[1750319261999,32.96798209,145.42,145.39,6.87805213]
[1750319262205,9.96582748,145.41,145.39,6.87805213]
[1750319262504,32.96798209,145.42,145.39,6.87805213]
[1750319262704,9.96570817,145.41,145.39,6.87805213]
[1750319262925,32.96798209,145.42,145.39,6.87805213]
[1750319263125,9.96564722,145.41,145.39,6.87805213]
[1750319263340,32.96798209,145.42,145.39,6.87805213]
[1750319263542,9.96564808,145.41,145.39,6.87805213]
[1750319263712,5.24798209,145.42,145.39,6.87805213]
[1750319263910,9.96659732,145.41,145.39,6.87805213]
[1750319264121,5.14164739,145.4,145.39,6.87805213]
[1750319264731,9.96389049,145.4,145.39,6.87805213]
[1750319267115,9.96419454,145.4,145.39,6.87805213]
[1750319271038,9.96419454,145.4,145.38,5.24798209]
[1750319271243,32.96798209,145.42,145.38,5.24798209]
[1750319271542,9.96662537,145.41,145.38,5.24798209]
[1750319271842,5.14315522,145.4,145.38,5.24798209]
[1750319272042,27.72,145.42,145.38,5.24798209]
[1750319272248,9.96934147,145.41,145.38,5.24798209]
[1750319272455,5.14341733,145.4,145.38,5.24798209]
[1750319272632,27.72,145.42,145.38,5.24798209]
[1750319272822,9.96937348,145.41,145.38,5.24798209]
[1750319273027,27.72,145.42,145.38,5.24798209]
[1750319273243,9.96931069,145.41,145.39,6.87805213]
[1750319273551,5.14414349,145.4,145.39,6.87805213]
[1750319278462,5.14414349,145.4,145.38,5.24798209]
[1750319278631,27.72,145.42,145.38,5.24798209]
[1750319278832,9.97260854,145.41,145.38,5.24798209]
[1750319279154,5.14538893,145.4,145.38,5.24798209]
[1750319279357,27.72,145.42,145.38,5.24798209]
[1750319279527,9.97263259,145.41,145.39,6.87805213]
[1750319279748,5.14540856,145.4,145.39,6.87805213]
[1750319280146,9.97225093,145.4,145.39,6.87805213]
[1750319280469,15.22023302,145.4,145.36,5.24798209]
[1750319280787,9.97225093,145.39,145.37,6.87887831]
[1750319280972,5.14540856,145.38,145.37,6.87887831]
[1750319282361,5.14540856,145.38,145.37,12.1268604]
[1750319282554,4.82660545,145.4,145.37,12.1268604]
[1750319282780,5.14450784,145.39,145.37,12.1268604]
[1750319282986,5.24798209,145.41,145.37,12.1268604]
[1750319283172,9.97113674,145.4,145.37,12.1268604]
[1750319283369,5.14448671,145.39,145.37,12.1268604]
[1750319283563,5.24798209,145.41,145.37,12.1268604]
[1750319283762,9.97116441,145.4,145.37,12.1268604]
[1750319283991,5.14452233,145.39,145.37,12.1268604]
[1750319284155,18.64964886,145.41,145.37,12.1268604]
[1750319284352,9.97132833,145.4,145.35,112.27963779]
[1750319284553,27.72,145.42,145.39,5.24798209]
[1750319284777,9.97192005,145.41,145.39,5.24798209]
[1750319284988,5.14491783,145.4,145.39,5.24798209]
[1750319285864,5.14491783,145.4,145.38,5.24798209]
[1750319286065,27.72,145.42,145.38,5.24798209]
[1750319286374,9.97400431,145.41,145.38,5.24798209]
[1750319286587,5.14639657,145.4,145.39,6.87805213]
[1750319287959,5.14639657,145.4,145.39,12.12603422]
[1750319288259,6.42609894,145.47,145.39,50.31309291]
[1750319288463,5.24798209,145.48,145.45,6.87521485]
[1750319288464,9.97538943,145.46,145.45,6.87521485]
[1750319289285,9.97538943,145.46,145.45,15.06965925]
[1750319289596,9.97832872,145.46,145.45,15.06965925]
[1750319290273,9.97832872,145.46,145.45,6.87521485]
[1750319290480,9.97832872,145.46,145.45,15.06965925]
[1750319292384,9.97832872,145.46,145.44,8.1944444]
[1750319292571,5.14701617,145.45,145.44,8.1944444]
[1750319292972,4.82469726,145.47,145.44,8.1944444]
[1750319293185,9.96470981,145.46,145.45,8.1944444]
[1750319293783,5.14001255,145.46,145.45,8.1944444]
[1750319293983,5.14001255,145.46,145.45,15.06965925]
[1750319294573,4.8191114,145.48,145.45,32.25769637]
[1750319294768,5.13714648,145.47,145.45,24.06325197]
[1750319294970,4.81957181,145.48,145.46,8.1944444]
[1750319295168,26.95257752,145.49,145.45,24.06325197]
[1750319295469,9.95666241,145.48,145.47,8.1944444]
[1750319295685,9.95666241,145.48,145.47,15.068714]
[1750319295885,5.13712005,145.48,145.47,15.068714]
[1750319296374,9.94773663,145.48,145.47,15.068714]
[1750319296571,5.13712005,145.48,145.47,15.068714]
[1750319296890,5.13712005,145.48,145.45,17.18803712]
[1750319297070,26.95257752,145.49,145.47,8.1944444]
[1750319297390,5.13408505,145.48,145.47,8.1944444]
[1750319297906,5.13408505,145.48,145.45,25.38248152]
[1750319298070,35.14702192,145.49,145.45,25.38248152]
[1750319298271,5.13218188,145.48,145.45,25.38248152]
[1750319298473,26.95257752,145.49,145.45,25.38248152]
[1750319298671,5.13152924,145.48,145.45,25.38248152]
[1750319298989,26.95257752,145.49,145.46,8.1944444]
[1750319299305,5.13061854,145.48,145.46,8.1944444]
[1750319299473,26.95257752,145.49,145.46,8.1944444]
[1750319299672,5.12884452,145.48,145.46,8.1944444]
[1750319299876,26.95257752,145.49,145.46,8.1944444]
[1750319300281,35.14702192,145.49,145.45,32.25769637]
[1750319301401,35.14702192,145.49,145.45,15.06965925]
[1750319301698,5.12264252,145.48,145.45,15.06965925]
[1750319301902,35.14702192,145.49,145.45,15.06965925]
[1750319302977,27.7,145.48,145.45,15.06965925]
[1750319303798,8.1944444,145.47,145.45,6.87521485]
[1750319304000,5.12059183,145.47,145.44,6.87552762]
[1750319304298,8.1944444,145.46,145.44,6.87552762]
[1750319304505,13.31499137,145.47,145.44,6.87552762]
[1750319304904,8.1944444,145.47,145.44,6.87552762]
[1750319305206,35.8944444,145.48,145.44,15.06997202]
[1750319305503,5.12048583,145.47,145.44,15.06997202]
[1750319305694,35.8944444,145.48,145.44,15.06997202]
[1750319305896,5.12052173,145.47,145.44,15.06997202]
[1750319306097,35.8944444,145.48,145.44,15.06997202]
[1750319306301,5.12052173,145.47,145.44,15.06997202]
[1750319306486,35.8944444,145.48,145.44,15.06997202]
[1750319306785,5.12044091,145.47,145.44,15.06997202]
[1750319306984,35.8944444,145.48,145.44,15.06997202]
[1750319307188,5.12044309,145.47,145.46,8.1944444]
[1750319307398,26.95257752,145.49,145.46,8.1944444]
[1750319307711,26.95257752,145.49,145.47,8.1944444]
[1750319308079,32.07324655,145.49,145.48,8.1944444]
[1750319309795,32.07324655,145.49,145.48,15.06824148]
[1750319310003,26.95257752,145.49,145.48,15.06824148]
[1750319312019,27.7,145.51,145.48,15.06824148]
[1750319312322,9.90397536,145.5,145.48,15.06824148]
[1750319312493,52.84409326,145.52,145.48,15.06824148]
[1750319312812,9.9039031,145.51,145.48,15.06824148]
[1750319312995,5.11911021,145.5,145.48,15.06824148]
[1750319313601,5.11911021,145.5,145.48,8.1944444]
[1750319313914,35.8944444,145.52,145.48,8.1944444]
[1750319314110,5.11927056,145.51,145.48,8.1944444]
[1750319314315,35.8944444,145.52,145.48,8.1944444]
[1750319314510,5.11927122,145.51,145.48,8.1944444]
[1750319314824,35.8944444,145.52,145.49,6.87332462]
[1750319315015,5.11898621,145.51,145.49,6.87332462]
[1750319315218,35.8944444,145.52,145.49,6.87332462]
[1750319315409,5.11898621,145.51,145.49,6.87332462]
[1750319316128,13.31343061,145.51,145.46,6.87474219]
[1750319316321,8.1944444,145.48,145.46,6.87474219]
[1750319316629,35.8944444,145.48,145.46,6.87474219]
[1750319316796,27.7,145.48,145.45,8.1944444]
[1750319318198,27.7,145.48,145.46,6.87474219]
[1750319321699,27.7,145.48,145.43,17.18934709]
[1750319321898,27.7,145.48,145.46,8.1944444]
[1750319323621,27.7,145.48,145.47,6.8742696]
[1750319323822,5.12280934,145.49,145.47,6.8742696]
[1750319324134,26.0,145.51,145.48,8.1944444]
[1750319324316,5.1224266,145.5,145.49,8.1944444]
[1750319324633,5.1224266,145.51,145.49,8.1944444]
[1750319324925,27.7,145.52,145.49,8.1944444]
[1750319325110,5.12258675,145.51,145.49,8.1944444]
[1750319325310,27.7,145.52,145.49,8.1944444]
[1750319325517,5.12151842,145.51,145.49,8.1944444]
[1750319325834,27.7,145.52,145.5,6.87285223]
[1750319326011,5.1212732,145.51,145.5,6.87285223]
[1750319326804,5.1212732,145.51,145.49,6.87332462]
[1750319327014,5.1212732,145.5,145.49,6.87332462]
[1750319327216,9.91099284,145.51,145.49,6.87332462]
[1750319327418,5.1212732,145.5,145.49,6.87332462]
[1750319328748,5.1212732,145.5,145.49,15.06776902]
[1750319331105,5.1212732,145.5,145.49,6.87332462]
[1750319332147,5.1212732,145.5,145.48,6.87379708]
[1750319332361,8.1944444,145.51,145.48,6.87379708]
[1750319332569,5.1327159,145.5,145.48,6.87379708]
[1750319332730,8.1944444,145.51,145.48,6.87379708]
[1750319332933,5.13239145,145.5,145.48,15.06824148]